[Event "44th Chess Olympiad Women 2022"]
[Site "Chennai"]
[Date "2022.07.29"]
[Round "1.11"]
[White "Smith, Olivia"]
[Black "Vantika Agrawal"]
[Result "0-1"]
[WhiteElo "2038"]
[BlackElo "2371"]
[Annotator "TA"]
[PlyCount "112"]
[EventDate "2022.??.??"]
[TimeControl "60"]

{[%evp 9,112,4,22,0,0,0,0,0,11,12,12,12,34,2,46,39,51,40,35,39,46,24,35,33,43,
50,56,60,83,56,72,0,158,25,100,109,105,62,119,57,62,62,58,58,121,31,39,38,52,
16,16,16,22,31,14,0,0,-39,-31,-31,-31,-31,-30,-52,-56,-84,-91,-118,-120,-118,
-101,-104,-97,-131,-131,-131,-131,-131,-104,-104,-104,-98,-104,-90,-77,-77,-77,
-77,-77,-122,-79,-79,-37,-79,-79,-106,-114,-925,-710,-2483,-609,-29962,-29960,
-29967,-29968]} 1. e4 {[%emt 0:00:05]} c5 {[%emt 0:00:16]} 2. Nf3 {[%emt 0:00:
00]} d6 {[%emt 0:00:03]} 3. Bb5+ {[%emt 0:00:05]} Nd7 {[%emt 0:00:06]} 4. Ba4 {
[%emt 0:00:10]} Ngf6 {[%emt 0:00:57]} 5. O-O {[%emt 0:00:34]} e6 {[%emt 0:00:
00]} (5... a6 $5 {[%cal Rb7b5]} 6. d3 b5 $11) 6. d3 {[%emt 0:00:28] B51:
Sicilian: Moscow Variation (3 Bb5+) without 3...Bd7.} Be7 {[%emt 0:00:55]} 7.
c4 {[%emt 0:00:11]} O-O {[%emt 0:01:11]} 8. Nc3 {[%emt 0:00:51] The position
is equal.} a6 {[%emt 0:03:03]} 9. Qe2 {[%emt 0:03:55]} Qc7 {[%emt 0:04:07]} 10.
Nd2 {[%emt 0:04:26] [#]} Nb6 $146 {[%emt 0:15:25]} ({Predecessor:} 10... Ne5
11. f4 Nc6 12. Bxc6 Qxc6 13. a4 Bd7 14. Nf3 Qc7 15. e5 Ng4 16. h3 Nh6 {½-½ 
(27) Jones,G (2672)-Keymer,V (2655) Germany 2022}) 11. Bc2 {[%emt 0:03:01]} e5
{[%emt 0:04:37]} 12. a3 {[%emt 0:05:53]} a5 {[%emt 0:03:04]} 13. Nb5 {[%emt 0:
00:00]} Qd8 {[%emt 0:00:48]} 14. Nb1 {[%emt 0:00:28]} Ne8 {[%emt 0:07:39]} 15.
f4 {[%emt 0:02:09]} exf4 {[%emt 0:01:01]} 16. Bxf4 {[%emt 0:01:06]} Bg5 {
[%emt 0:03:56]} 17. Bg3 {[%emt 0:04:19]} Be6 {[%emt 0:07:18]} 18. N1c3 {
[%emt 0:04:29]} Bh4 {[%emt 0:05:04]} 19. Bf4 {[%emt 0:11:36]} Bg5 {[%emt 0:00:
00]} 20. Bg3 {[%emt 0:01:46]} (20. Qd2 $16 Bxf4 21. Qxf4) 20... Nc8 $2 {
[%emt 0:02:49] [#]} (20... Bh4 $1 $11) 21. Nd5 {[%emt 0:08:12]} (21. d4 $16)
21... Bxd5 {[%emt 0:05:28]} (21... Na7 $1 $11 {keeps the balance.}) 22. exd5
$16 {[%emt 0:00:26]} g6 {[%emt 0:04:25]} 23. Nc3 {[%emt 0:05:19]} Nf6 {[%emt 0:
00:00]} ({Black should play} 23... f5 $14) 24. Ba4 {[%emt 0:02:47]} (24. Rae1
$16) 24... Nh5 $14 {[%emt 0:02:21]} 25. Ne4 {[%emt 0:02:55]} Nxg3 {[%emt 0:00:
00]} 26. hxg3 {[%emt 0:00:54]} ({Of course not} 26. Nxg3 f5 $11) 26... h5 {
[%emt 0:04:07]} (26... Be7 $14) 27. Qf3 {[%emt 0:04:57]} (27. Rae1 $16) 27...
Kg7 {[%emt 0:02:09]} 28. Rae1 {[%emt 0:01:32][%cal Ya1e1,Ye1e2,Ye2f2,Yf2f6]}
Be7 {[%emt 0:00:59]} 29. Re2 {[%emt 0:04:59]} Nb6 {[%emt 0:02:12]} 30. Bb5 {
[%emt 0:00:42]} Nd7 {[%emt 0:01:17]} 31. Bxd7 {[%emt 0:04:19]} Qxd7 {[%emt 0:
00:03]} 32. Nf6 {[%emt 0:02:37]} Qd8 {[%emt 0:00:06][%cal Re7f6]} 33. Ref2 {
[%emt 0:00:27]} Bxf6 {[%emt 0:01:55]} 34. Qxf6+ {[%emt 0:00:07]} Qxf6 {[%emt 0:
00:03]} 35. Rxf6 $15 {[%emt 0:00:06] Endgame KRR-KRR} Rad8 {[%emt 0:00:32]} 36.
R6f4 {[%emt 0:06:17]} f5 {[%emt 0:00:58]} 37. d4 {[%emt 0:00:00]} b6 {[%emt 0:
00:58]} 38. b4 {[%emt 0:02:06]} axb4 {[%emt 0:00:29]} ({And not} 38... cxb4 39.
axb4 Ra8 40. bxa5 bxa5 41. R4f2 $15) 39. axb4 {[%emt 0:00:00]} cxd4 {[%emt 0:
00:28]} ({Worse is} 39... cxb4 40. Rb1 $15) 40. Rxd4 {[%emt 0:00:30]} Kf6 {
[%emt 0:00:44]} 41. Re1 {[%emt 0:04:38]} Rfe8 {[%emt 0:00:00]} 42. Kf2 {
[%emt 0:11:20]} Rxe1 {[%emt 0:02:06]} 43. Kxe1 $17 {[%emt 0:00:00] KR-KR} Ke5
44. Rd3 {[%emt 0:00:30]} Rc8 45. Re3+ {[%emt 0:00:30]} Kd4 46. Re6 {[%emt 0:00:
30][%csl Yd6,Yg6]} Rxc4 47. Rxd6 {[%emt 0:00:30]} Rxb4 48. Rxg6 {[%emt 0:00:30]
} Kxd5 49. Rg5 {[%emt 0:00:30] [#]} Ke4 $1 {White must now prevent ...Rb1+.}
50. Rxh5 {[%emt 0:00:30] Threatening mate with Rh4+.} Rb1+ 51. Kf2 {[%emt 0:00:
30]} Rb2+ 52. Kf1 {[%emt 0:00:30]} b5 {[%cal Yb6b5,Yb5b4,Yb4b3] ...b4 is the
strong threat.} 53. Rh8 $2 {[%emt 0:00:30] This move loses the game for White.}
(53. Rh4+ $17 Kd3 54. g4) 53... b4 $19 54. Re8+ {[%emt 0:00:30]} Kd3 (54... Kd4
$142 55. Rd8+ Ke3 56. Re8+ Kd2 57. Rd8+ Kc1) 55. Re5 {[%emt 0:00:30]} b3 56.
Rxf5 {[%emt 0:00:30]} Rc2 {Weighted Error Value: White=0.59/Black=0.29 
(precise)} 0-1

[Event "44th Chess Olympiad Women 2022"]
[Site "Chennai"]
[Date "2022.07.29"]
[Round "1.11"]
[White "Soumya, Swaminathan"]
[Black "Chong, Kimberly"]
[Result "1-0"]
[WhiteElo "2335"]
[BlackElo "1741"]
[Annotator "TA"]
[PlyCount "73"]
[EventDate "2022.??.??"]
[TimeControl "60"]

{[%evp 9,73,42,68,17,32,22,26,12,16,-7,-17,-21,21,29,68,62,87,31,95,89,202,44,
46,45,49,46,54,28,26,27,44,29,37,4,7,0,48,21,28,24,733,734,754,753,740,731,717,
662,845,842,1092,1054,1213,1233,1535,1501,1891,1829,29989,29990,29990,29990,
29990,29990,29990,29991]} 1. e4 {[%emt 0:00:03]} d5 {[%emt 0:00:20]} 2. exd5 {
[%emt 0:00:05]} Nf6 {[%emt 0:00:13]} 3. Nf3 {[%emt 0:00:17]} Nxd5 {[%emt 0:00:
00]} 4. d4 {[%emt 0:00:04]} g6 {[%emt 0:01:11]} 5. c4 {[%emt 0:00:49]} Nb6 {
[%emt 0:01:08]} 6. h3 {[%emt 0:04:22] B01: Scandinavian Defence.} (6. c5 $14
Nd5 7. Nc3) 6... Bg7 $11 {[%emt 0:03:03]} 7. c5 {[%emt 0:16:17]} Nd5 {[%emt 0:
00:00]} 8. Bc4 {[%emt 0:00:32] White has an edge.} O-O {[%emt 0:09:07]} 9. Qb3
{[%emt 0:06:26] [#]} e6 $146 {[%emt 0:04:44]} ({Predecessor:} 9... c6 10. Nc3
Nxc3 11. bxc3 b5 12. cxb6 axb6 13. Ng5 {½-½ (13) Antoniewski,R (2585)
-Karttunen,M (2423) Rogaska Slatina 2011}) 10. Bg5 {[%emt 0:00:15]} f6 {
[%emt 0:12:37]} 11. Bd2 {[%emt 0:00:26]} b6 {[%emt 0:13:13]} 12. Nc3 {[%emt 0:
00:00][%cal Rc3d5]} Re8 {[%emt 0:08:07]} 13. O-O-O {[%emt 0:05:16] White is
more active.} (13. O-O $16 {[%cal Rc3d5]} c6 14. Rac1) 13... Nxc3 {[%emt 0:00:
00]} (13... c6 $1 $14) 14. Bxc3 $16 {[%emt 0:02:39]} a5 {[%emt 0:03:41] [#]} (
14... Qe7 $16) 15. cxb6 $2 {[%emt 0:07:49]} (15. d5 $1 $18) 15... cxb6 $14 {
[%emt 0:01:18]} 16. a4 {[%emt 0:01:03]} Na6 {[%emt 0:04:17]} 17. Rhe1 {[%emt 0:
00:00][%cal Rc4e6]} Qd6 {[%emt 0:01:14]} 18. Nd2 {[%emt 0:05:52]} Bh6 $1 {
[%emt 0:02:05]} 19. Kb1 {[%emt 0:00:29] [#] Threatens to win with Ne4.} Bxd2 {
[%emt 0:00:14]} 20. Rxd2 {[%emt 0:00:27][%cal Yf2f4]} Bd7 {[%emt 0:02:10]} 21.
Rde2 {[%emt 0:10:57][%cal Rc4e6]} Nc7 {[%emt 0:00:14]} 22. Bd2 {[%emt 0:00:10]
[%cal Yc3d2,Yd2f4,Yf4c7]} Nd5 {[%emt 0:02:44]} (22... Rac8 $11) 23. Qf3 {
[%emt 0:03:26]} Kf7 {[%emt 0:02:37]} 24. Bb3 {[%emt 0:07:54]} Nc7 $2 {[%emt 0:
02:07] Black cannot hold the game after this.} (24... Rab8 $11) 25. Bf4 $18 {
[%emt 0:03:35] This bishop pair is nice.} Qc6 {[%emt 0:02:14]} 26. Qxc6 {
[%emt 0:00:19]} Bxc6 {[%emt 0:00:06]} 27. Bxc7 {[%emt 0:00:03]} Bd7 {[%emt 0:
02:16]} 28. Ka2 {[%emt 0:01:47]} b5 {[%emt 0:00:37]} 29. axb5 {[%emt 0:00:06]
[%cal Ya4b5,Yb5b6]} a4 {[%emt 0:00:05]} 30. Bc4 {[%emt 0:00:03]} Rac8 {[%emt 0:
01:01]} 31. b6 {[%emt 0:00:05]} h5 {[%emt 0:00:00]} 32. f4 {[%emt 0:00:45]} f5
{[%emt 0:00:17]} 33. d5 {[%emt 0:00:07][%cal Rd5e6]} exd5 {[%emt 0:00:40]} 34.
Bxd5+ {[%emt 0:00:03] White mates.} Kf8 {[%emt 0:00:26]} 35. Bd6+ {[%emt 0:00:
04]} Kg7 {[%emt 0:00:18]} 36. Rxe8 {[%emt 0:00:09]} Bxe8 {[%emt 0:00:46]} 37.
b7 {[%emt 0:00:09] Weighted Error Value: White=0.31/Black=0.55} 1-0

[Event "44th Chess Olympiad Women 2022"]
[Site "Chennai"]
[Date "2022.07.29"]
[Round "1.12"]
[White "Castillo Beitia, Ashley Alexandra"]
[Black "Terbe, Julianna"]
[Result "0-1"]
[WhiteElo "1587"]
[BlackElo "2291"]
[Annotator "NA RC"]
[PlyCount "58"]
[EventDate "2022.??.??"]
[TimeControl "60"]

1. d4 {[%emt 0:00:04]} d5 {[%emt 0:00:06]} 2. c4 {[%emt 0:00:02]} c6 {[%emt 0:
00:00]} 3. Nc3 {[%emt 0:00:06]} Nf6 {[%emt 0:00:14]} 4. Nf3 {[%emt 0:00:17]}
dxc4 {[%emt 0:00:41]} 5. e4 {[%emt 0:00:34]} b5 {[%emt 0:00:15]} 6. Be2 {
[%emt 0:00:41]} e6 {[%emt 0:01:41]} 7. a4 {[%emt 0:07:16]} b4 {[%emt 0:00:10]}
8. Na2 {[%emt 0:00:43]} Nxe4 {[%emt 0:00:50]} 9. Bxc4 {[%emt 0:02:19]} Bb7 {
[%emt 0:05:00]} 10. Be3 {[%emt 0:06:46]} Nd7 {[%emt 0:01:32]} 11. O-O {[%emt 0:
00:00]} a5 {[%emt 0:02:22]} 12. Qc2 {[%emt 0:09:10]} Nef6 {[%emt 0:02:45]} 13.
Nc1 {[%emt 0:04:29]} Be7 {[%emt 0:01:59]} 14. Nd3 {[%emt 0:05:27]} O-O {
[%emt 0:02:18]} 15. Rfd1 {[%emt 0:04:27]} Nd5 {[%emt 0:02:07]} 16. Bd2 {
[%emt 0:01:33]} Rc8 {[%emt 0:01:31]} 17. Rac1 {[%emt 0:02:29]} c5 {[%emt 0:00:
00]} 18. Qb3 {[%emt 0:07:20]} cxd4 {[%emt 0:06:22]} 19. Nxd4 {[%emt 0:00:30]}
Nc5 {[%emt 0:00:45]} 20. Nxc5 {[%emt 0:03:47]} Bxc5 {[%emt 0:00:08]} 21. Nc2 {
[%emt 0:11:13]} Bxf2+ {[%emt 0:08:16]} 22. Kxf2 {[%emt 0:01:28]} Qh4+ {[%emt 0:
00:00]} 23. Kg1 {[%emt 0:00:48]} Rxc4 {[%emt 0:03:23]} 24. Bg5 {[%emt 0:03:27]}
Qxg5 {[%emt 0:09:56]} 25. Qxc4 {[%emt 0:00:41]} Nf4 {[%emt 0:00:16]} 26. Ne1 {
[%emt 0:08:22]} Nh3+ {[%emt 0:05:02]} 27. Kh1 {[%emt 0:01:53]} Nf2+ {[%emt 0:
00:00]} 28. Kg1 {[%emt 0:00:08]} Qe3 {[%emt 0:00:53]} 29. Nc2 {[%emt 0:02:24]}
Nh3+ {[%emt 0:00:19]} 0-1

[Event "44th Chess Olympiad Women 2022"]
[Site "Chennai"]
[Date "2022.07.29"]
[Round "1.12"]
[White "Gaal, Zsoka"]
[Black "Rondon Chacon, Yolys Desiree"]
[Result "1-0"]
[WhiteElo "2313"]
[BlackElo "1688"]
[Annotator "TA"]
[PlyCount "105"]
[EventDate "2022.??.??"]
[TimeControl "60"]

{[%evp 13,105,0,24,22,22,18,15,13,30,7,14,11,39,28,70,52,69,82,80,34,67,41,39,
39,95,85,87,88,88,78,168,168,362,347,362,151,155,160,418,118,118,128,123,114,
145,134,141,81,140,99,260,264,224,104,219,136,321,321,308,324,351,256,247,219,
543,406,369,373,514,423,497,414,540,518,672,558,527,522,552,442,593,568,570,
567,544,533,797,604,604,604,959,744,675,640]} 1. Nf3 {[%emt 0:00:09]} Nf6 {
[%emt 0:00:12]} 2. g3 {[%emt 0:00:15]} g6 {[%emt 0:00:13]} 3. Bg2 {[%emt 0:00:
00]} Bg7 {[%emt 0:00:12]} 4. d4 {[%emt 0:00:10]} d5 {[%emt 0:00:42]} 5. c4 {
[%emt 0:00:15]} c6 {[%emt 0:01:20]} 6. Qb3 {[%emt 0:00:15]} O-O {[%emt 0:03:33]
} 7. O-O {[%emt 0:00:08]} a5 {[%emt 0:03:21]} 8. cxd5 {[%emt 0:00:40] D78:
Fianchetto Grünfeld: 6 0-0 c6.} a4 {[%emt 0:05:53]} 9. Qd1 {[%emt 0:00:20]}
cxd5 {[%emt 0:08:54]} 10. Nc3 {[%emt 0:00:14] The position is equal.} Bd7 {
[%emt 0:07:04]} 11. Ne5 {[%emt 0:01:55]} e6 {[%emt 0:04:40] [#]} 12. e3 $146 {
[%emt 0:06:52]} ({Predecessor:} 12. Nxd7 Qxd7 13. e3 Ne8 14. e4 dxe4 15. Nxe4
Qxd4 16. Be3 Qxb2 17. Rb1 Qxa2 18. Bc5 {½-½ (62) Svidler,P (2753)-Ivanchuk,V
(2710) Jerusalem 2018}) 12... b5 {[%emt 0:25:21]} 13. a3 {[%emt 0:13:01]} Na6 {
[%emt 0:04:57]} 14. Bd2 {[%emt 0:11:59]} Rb8 {[%emt 0:03:34]} 15. Qe2 {[%emt 0:
00:00]} Qb6 {[%emt 0:02:30]} 16. g4 {[%emt 0:09:06]} (16. Rfb1 $16) 16... Rfd8
{[%emt 0:06:53]} 17. Qf3 {[%emt 0:09:43]} Be8 {[%emt 0:03:40]} 18. g5 {[%emt 0:
00:00]} Ne4 {[%emt 0:07:22]} (18... Nh5 $14) 19. Nxe4 $16 {[%emt 0:01:26] [#]
Threatens to win with Nf6+.} Bxe5 {[%emt 0:01:23]} 20. Nf6+ {[%emt 0:03:01]} (
20. dxe5 dxe4 21. Qe2 b4 $17) 20... Bxf6 {[%emt 0:00:29]} 21. gxf6 {[%emt 0:00:
00][%cal Yd2a5]} (21. Qxf6 {looks sharper.} Rd6 22. h4 b4 23. Rfc1) 21... Bc6 {
[%emt 0:03:05]} (21... b4 $16) 22. Qf4 $18 {[%emt 0:01:28]} Nc7 $2 {[%emt 0:00:
00]} (22... Kh8 23. b3 (23. Qh6 Rg8 $16) 23... axb3) 23. Bb4 {[%emt 0:01:21]
Intending Qh6 and mate.} (23. Qh6 Ne8 $16) 23... Ne8 {[%emt 0:01:04]} 24. Be7 {
[%emt 0:00:51] A strong pair of Bishops.} (24. Rac1 $18) 24... Rd7 $16 {
[%emt 0:02:26]} 25. Rac1 {[%emt 0:02:19][%cal Yc1c6] White is much more active.
} (25. Qh6 Rxe7 26. fxe7 Nd6 $16) 25... Rbb7 $2 {[%emt 0:01:42]} (25... Rxe7
$16 {is a better defense.} 26. fxe7 Rb7) 26. Qh6 $2 {[%emt 0:01:40]} (26. Bb4
$18 h6 27. Qxh6 Nxf6 28. f4) 26... Rxe7 {[%emt 0:00:22]} 27. fxe7 $40 {[%emt 0:
00:00] White has strong attack.} Rxe7 {[%emt 0:00:30]} 28. Qf4 {[%emt 0:06:55]
Against Nd6} Rd7 {[%emt 0:00:45]} 29. Rc5 {[%emt 0:06:28]} Nd6 {[%emt 0:00:50]}
30. Qf6 {[%emt 0:00:44]} ({White should try} 30. Rfc1 Nc4 31. h4) 30... Nc4 {
[%emt 0:00:46]} (30... Nb7 $142) 31. Rb1 {[%emt 0:02:59][%cal Ye3e4]} Nd2 $2 {
[%emt 0:00:48] [#]} (31... Rd6 $16 {might work better.} 32. Qf4 Bb7) 32. Rbc1
$1 $18 {[%emt 0:00:19]} Nc4 {[%emt 0:00:06]} 33. Rc3 {[%emt 0:00:00]} (33. e4
$18 {has better winning chances. And now exd5 would win.} Qb7 34. Bh3) 33...
Bb7 {[%emt 0:00:48]} (33... Rd6 $16 {was worth a try.} 34. Rc2 e5) 34. Bh3 {
[%emt 0:04:03]} Rd6 $2 {[%emt 0:00:51]} (34... Ba6 $16 {was called for.} 35.
Rc2 Rd8) 35. Qe7 {[%emt 0:01:06]} Rc6 {[%emt 0:00:28] Prevents Rc7.} 36. b3 {
[%emt 0:05:24]} Na5 {[%emt 0:00:25]} 37. bxa4 {[%emt 0:03:44]} bxa4 {[%emt 0:
00:17]} 38. Bf1 {[%emt 0:00:17][%cal Yh3f1,Yf1b5,Yb5a4,Ya4d1] Prevents Nc4.
Hoping for Rb5.} Rxc5 {[%emt 0:00:48]} (38... Nc4 39. e4 (39. Bxc4 dxc4 40. Rc1
Qb2 $11) 39... Rxc5 40. Qxc5 (40. dxc5 Qb2 $11) 40... Qd8 41. exd5 (41. Bxc4
dxc4 42. Re3 h5 $16) 41... exd5) 39. Qxc5 {[%emt 0:00:41]} Qd8 {[%emt 0:00:07]}
40. Qc7 {[%emt 0:00:56] Prevents Bc6.} Qg5+ {[%emt 0:00:52]} 41. Qg3 {[%emt 0:
31:27]} Qe7 {[%emt 0:00:34]} 42. Rc5 {[%emt 0:00:00]} Nc6 {[%emt 0:13:45]} 43.
Bb5 {[%emt 0:00:00][%csl Ya4,Yc6] White is clearly winning.} Nd8 {[%emt 0:03:
52]} 44. Bxa4 {[%emt 0:00:00]} Ba6 45. Bd1 {[%emt 0:00:00]} Bd3 46. Rc8 {
[%emt 0:00:00] aiming for Qb8.} Kg7 47. Qe5+ {[%emt 0:00:00]} Kh6 48. Qf4+ {
[%emt 0:00:00]} Kg7 49. h4 {[%emt 0:00:00] Strongly threatening Qe5+.} h6 50.
Qe5+ {[%emt 0:00:00]} Kh7 51. Qc7 {[%emt 0:00:00]} Nc6 52. Qxe7 {[%emt 0:00:00]
} Nxe7 53. Rc7 {[%emt 0:00:00] Weighted Error Value: White=0.49/Black=0.61} 1-0

[Event "44th Chess Olympiad Women 2022"]
[Site "Chennai"]
[Date "2022.07.29"]
[Round "1.12"]
[White "Gara, Ticia"]
[Black "Chung Hurtado, Yaleika"]
[Result "1-0"]
[WhiteElo "2367"]
[BlackElo "1696"]
[Annotator "TA"]
[PlyCount "62"]
[EventDate "2022.??.??"]
[TimeControl "60"]

{[%evp 9,62,17,16,0,0,0,1,0,58,44,66,52,66,60,73,75,102,79,147,151,153,139,115,
89,364,391,657,338,345,341,311,302,402,404,404,388,399,399,388,395,487,477,754,
750,946,843,1179,456,999,865,1339,803,1256,770,701]} 1. e4 {[%emt 0:00:03]
[%cal Ye2e4,Ye4e5]} c6 {[%emt 0:00:17]} 2. d4 {[%emt 0:00:13]} d5 {[%emt 0:00:
18]} 3. e5 {[%emt 0:00:23]} c5 {[%emt 0:01:59]} 4. Nf3 {[%emt 0:00:00]} Bg4 {
[%emt 0:01:53]} 5. dxc5 {[%emt 0:01:05]} e6 {[%emt 0:01:09]} 6. c3 {[%emt 0:01:
59] Strongly threatening Qa4+. B12: Caro-Kann: Advance Variation.} Bxf3 {
[%emt 0:07:19]} 7. Qxf3 {[%emt 0:04:29]} Bxc5 {[%emt 0:09:49]} 8. Qg3 {[%emt 0:
05:28] [#] The position is equal.} Bf8 $146 {[%emt 0:00:38]} (8... Ne7 $1 $11)
({Predecessor:} 8... g6 9. Bd3 Ne7 10. O-O Nbc6 11. Bg5 Qc7 12. Bf6 Rg8 13. Nd2
O-O-O 14. a4 d4 {1-0 (24) Abylkasymov,K (1827)-De Veyra,J Tornelo INT 2021}) 9.
Bd3 {[%emt 0:03:04]} Nc6 {[%emt 0:05:30]} 10. O-O {[%emt 0:02:15]} h5 {[%emt 0:
02:48]} 11. Re1 $36 {[%emt 0:28:40] White is pushing.} Nh6 {[%emt 0:12:03]} 12.
Bg5 {[%emt 0:05:57]} Qc7 {[%emt 0:01:59]} 13. h3 {[%emt 0:00:00] Against Ng4}
a6 {[%emt 0:10:44]} (13... Be7 $142) 14. Nd2 $16 {[%emt 0:00:00]} Ne7 {[%emt 0:
08:10]} 15. c4 {[%emt 0:03:34][%cal Yc3c4,Yc4d5,Yd5d6] aiming for cxd5.0x0.
001f2085d00ddp-1022s more active pieces.} Nhf5 {[%emt 0:03:08]} 16. Qf3 {
[%emt 0:13:29] Hoping for cxd5.} Rd8 {[%emt 0:08:54] Black cannot hold the
game after this.} (16... Nd4 $16 17. Qg3 Nec6) 17. Bxf5 $18 {[%emt 0:01:26]}
exf5 $2 {[%emt 0:08:12]} (17... Nxf5 18. Bxd8 Qxd8 19. cxd5 Qxd5) 18. Bxe7 {
[%emt 0:01:17]} Bxe7 {[%emt 0:03:24]} 19. cxd5 {[%emt 0:00:05]} Bb4 {[%emt 0:
00:11]} 20. Re2 {[%emt 0:07:57]} Qa5 {[%emt 0:00:00]} 21. Nc4 {[%emt 0:01:18]
[%cal Yd2c4,Yc4e3,Ye3d5,Yd5e7]} Qb5 {[%emt 0:02:26]} 22. Ne3 {[%emt 0:03:06]}
g6 {[%emt 0:01:25]} 23. d6 {[%emt 0:00:00]} O-O {[%emt 0:01:33]} 24. Nd5 {
[%emt 0:01:15]} Bc5 {[%emt 0:01:40]} 25. Rd1 {[%emt 0:02:12] White is clearly
winning.} Qa4 {[%emt 0:00:47]} (25... Kg7 $142 26. Rc2 Bxd6 27. exd6 Rxd6) 26.
b3 {[%emt 0:00:32]} Qa3 {[%emt 0:01:31]} 27. Ne7+ {[%emt 0:01:50]} Kg7 {
[%emt 0:00:12] [#]} 28. Qxb7 {[%emt 0:00:14]} (28. Nxf5+ $142 $1 Kg8 {[#]} 29.
Qxb7 $1) 28... Rb8 {[%emt 0:01:39]} (28... Bxd6 $142 29. exd6 Rxd6) 29. Qf3 {
[%emt 0:00:16]} Rbd8 {[%emt 0:00:45]} 30. Rc2 {[%emt 0:00:54]} Bb6 {[%emt 0:01:
31]} 31. Kh2 {[%emt 0:01:11]} Qb4 {[%emt 0:00:00] Weighted Error Value:
White=0.47/Black=0.66} 1-0

[Event "44th Chess Olympiad Women 2022"]
[Site "Chennai"]
[Date "2022.07.29"]
[Round "1.12"]
[White "Vasquez Jaen, Lourdes Lorena"]
[Black "Lazarne Vajda, Szidonia"]
[Result "1/2-1/2"]
[WhiteElo "1653"]
[BlackElo "2313"]
[Annotator "TA"]
[PlyCount "65"]
[EventDate "2022.??.??"]
[TimeControl "60"]

{[%evp 12,65,39,22,23,20,43,43,43,41,39,20,21,25,15,15,14,-23,0,0,12,11,25,-47,
-55,-47,-40,-45,12,6,20,23,42,28,33,31,28,28,16,31,93,58,206,198,192,161,126,
47,50,0,0,0,49,0,0,0]} 1. e4 {[%emt 0:03:18]} c6 {[%emt 0:00:22]} 2. d4 {
[%emt 0:00:21]} d5 {[%emt 0:00:14]} 3. exd5 {[%emt 0:04:35]} cxd5 {[%emt 0:00:
00]} 4. Bd3 {[%emt 0:00:14]} Nc6 {[%emt 0:02:09]} 5. c3 {[%emt 0:00:07]} Nf6 {
[%emt 0:01:09][%cal Yg8f6,Yf6h5,Yh5f4]} 6. Bf4 {[%emt 0:01:49]} e6 {[%emt 0:02:
25]} 7. Nf3 {[%emt 0:01:48]} Nh5 {[%emt 0:07:52] B13: Caro-Kann: Exchange
Variation and Panov-Botvinnik Attack.} 8. Bg5 {[%emt 0:01:30]} Be7 {[%emt 0:03:
16]} 9. Bxe7 {[%emt 0:00:32]} Qxe7 {[%emt 0:00:17] White is slightly better.}
10. O-O {[%emt 0:02:10]} O-O {[%emt 0:03:52]} 11. Ne5 {[%emt 0:08:57]} Nf4 {
[%emt 0:02:12] [#]} 12. Bc2 $146 {[%emt 0:01:13]} ({Predecessor:} 12. Re1 Qg5
13. Qf3 f5 14. Bf1 Rf6 15. Na3 Rh6 16. Nb5 Nxe5 17. dxe5 Ng6 18. Rad1 {1-0 (37)
Caric,M (2088)-Novosad,I (1840) Bosnjaci 2019}) 12... Nxe5 {[%emt 0:12:54]} 13.
dxe5 {[%emt 0:00:21]} f5 {[%emt 0:01:52]} 14. Qf3 {[%emt 0:10:09]} Ng6 {
[%emt 0:07:12]} 15. Re1 {[%emt 0:00:41]} Bd7 {[%emt 0:06:25]} 16. Nd2 {[%emt 0:
05:22]} Bc6 {[%emt 0:01:23][%cal Yd5d4]} 17. Qh3 {[%emt 0:07:33]} (17. Qg3 $11)
17... d4 $1 $15 {[%emt 0:02:39] [#] And now ...Nf4 would win.} 18. Nf3 {
[%emt 0:12:48]} dxc3 {[%emt 0:04:26]} 19. bxc3 {[%emt 0:00:14]} Rac8 {[%emt 0:
03:42]} (19... Rad8 $15) 20. Bb3 $11 {[%emt 0:00:00][%cal Yb3e6] aiming for
Bxe6+!} Bxf3 {[%emt 0:03:43]} (20... Nf4 {with more complications.} 21. Qg3 Nd3
22. Nd4 Nc5) 21. Qxf3 {[%emt 0:00:52]} Rc5 {[%emt 0:01:32]} 22. Rad1 {[%emt 0:
10:23] Strongly threatening Rd6.} Kh8 {[%emt 0:02:23]} ({Don't play} 22... Rxe5
23. Rxe5 Nxe5 24. Qe3 $16) (22... Nxe5 23. Qf4 Qc7 24. Bxe6+ Kh8 25. Rd5 $16 (
25. Bxf5 g6 $14)) 23. Rd6 {[%emt 0:00:00]} Rxe5 {[%emt 0:07:25]} 24. Rxe5 {
[%emt 0:00:07]} Nxe5 {[%emt 0:00:32]} 25. Qd1 {[%emt 0:00:04]} Qh4 {[%emt 0:03:
06]} (25... Ng4 $14) 26. h3 {[%emt 0:00:00]} h6 {[%emt 0:05:32]} ({Black
should try} 26... Qg5 $14) 27. Rxe6 $18 {[%emt 0:00:43]} Nc6 {[%emt 0:00:49]}
28. Qd7 {[%emt 0:04:40] [#] Re8 is the strong threat.} Qg5 {[%emt 0:01:37]} 29.
Re8 {[%emt 0:02:01]} ({Inferior is} 29. Qxb7 Qc1+ 30. Kh2 Qf4+ 31. Kg1 Nd8 32.
Qxa7 Nxe6 $17) (29. Re3 $16) 29... Qc1+ $14 {[%emt 0:01:03]} 30. Kh2 {[%emt 0:
00:04]} (30. Bd1 $5 {[%cal Re8f8]} Rxe8 31. Qxe8+ Kh7 32. Qd7 $14) 30... Qf4+ {
[%emt 0:00:21]} 31. Kg1 {[%emt 0:00:00] The board is on fire.} Qc1+ {[%emt 0:
00:19]} 32. Kh2 {[%emt 0:00:00]} (32. Bd1 $1 $14 Rxe8 33. Qxe8+ Kh7 34. Qd7)
32... Qf4+ $11 {[%emt 0:00:20]} 33. Kg1 {[%emt 0:00:01] Weighted Error Value:
White=0.18 (very precise) /Black=0.22 (precise)} 1/2-1/2

[Event "44th Chess Olympiad Women 2022"]
[Site "Chennai"]
[Date "2022.07.29"]
[Round "1.13"]
[White "Eizaguerri Floris, Maria"]
[Black "Arai, Yuki"]
[Result "1-0"]
[WhiteElo "2176"]
[BlackElo "1495"]
[Annotator "NA RC"]
[PlyCount "29"]
[EventDate "2022.??.??"]
[TimeControl "60"]

1. e4 {[%emt 0:00:05]} e5 {[%emt 0:00:07]} 2. Nf3 {[%emt 0:00:06]} Nc6 {
[%emt 0:00:08]} 3. Bb5 {[%emt 0:00:09]} a6 {[%emt 0:00:13]} 4. Ba4 {[%emt 0:00:
00]} Nf6 {[%emt 0:00:25]} 5. O-O {[%emt 0:00:12]} Be7 {[%emt 0:00:40]} 6. Re1 {
[%emt 0:00:14]} b5 {[%emt 0:00:23]} 7. Bb3 {[%emt 0:00:06]} O-O {[%emt 0:00:38]
} 8. c3 {[%emt 0:00:13]} d6 {[%emt 0:00:52]} 9. d4 {[%emt 0:00:51]} Bg4 {
[%emt 0:01:12]} 10. Be3 {[%emt 0:00:26]} Na5 {[%emt 0:05:00]} 11. Bc2 {[%emt 0:
00:00]} Nc4 {[%emt 0:02:36]} 12. Bc1 {[%emt 0:00:23]} c5 {[%emt 0:03:38]} 13.
b3 {[%emt 0:03:11]} Nb6 {[%emt 0:03:48]} 14. Be3 {[%emt 0:11:18]} Qc7 {[%emt 0:
00:00]} 15. d5 {[%emt 0:05:11]} 1-0